bitfinex/quotes_ETHUSD_20260113
["timestamp","ask_amount","ask_price","bid_price","bid_amount"]
[1768342401633,0.003,3310.6,3306.4,4.245512]
[1768342401835,0.163,3310.6,3306.2,2.167287]
[1768342402342,0.003,3310.6,3306.3,0.19024528]
[1768342402637,0.003,3310.6,3305.4,1.57008075]
[1768342402638,0.003,3310.6,3307.5,28.33962783]
[1768342402836,0.003,3310.6,3308.0,4.538492]
[1768342403049,0.003,3310.6,3307.9,1.52028065]
[1768342403231,0.003,3310.6,3307.6,2.194031]
[1768342403410,0.003,3310.6,3306.5,7.97351652]
[1768342403411,0.19011518,3310.5,3307.4,3.02350337]
[1768342403740,0.19011518,3310.5,3304.8,0.001]
[1768342403943,0.19011518,3310.5,3305.7,3.02506121]
[1768342403944,0.16,3310.5,3305.7,3.02506121]
[1768342404147,0.16,3310.5,3305.3,3.02542049]
[1768342404148,0.16,3310.3,3306.3,3.02443969]
[1768342404344,0.16,3310.3,3306.1,3.02468116]
[1768342404512,0.16,3310.1,3305.3,0.03025443]
[1768342404713,0.16,3309.9,3305.3,11.902009]
[1768342404920,0.003,3310.6,3305.5,18.50465552]
[1768342405121,0.16,3310.4,3305.8,0.16]
[1768342405433,0.16,3310.1,3305.9,14.5]
[1768342405634,0.03011518,3310.0,3305.9,14.5]
[1768342405825,0.16,3310.1,3305.9,14.5]
[1768342406131,0.31275425,3310.0,3306.0,0.03024803]
[1768342406330,0.16,3310.3,3306.1,6.30804334]
[1768342406564,0.003,3310.6,3306.4,2.637044]
[1768342406733,0.003,3310.6,3306.7,14.5]
[1768342406934,0.003,3310.6,3306.8,3.819532]
[1768342407268,0.003,3310.6,3306.5,23.09524642]
[1768342407269,0.003,3310.6,3306.9,3.186925]
[1768342407471,0.003,3310.6,3306.7,4.202318]
[1768342407671,0.003,3310.6,3306.8,14.5]
[1768342407870,0.16,3310.4,3306.5,3.02434598]
[1768342408045,0.16,3310.4,3306.5,6.04869196]
[1768342408668,0.003,3310.6,3306.5,6.07893541]
[1768342408971,0.16,3310.5,3306.3,6.04905784]
[1768342409169,0.47275425,3310.5,3306.3,9.07358676]
[1768342409466,0.003,3310.6,3306.6,2.228572]
[1768342409670,0.003,3310.6,3306.3,37.59616112]
[1768342409671,0.003,3310.6,3306.7,2.422984]
[1768342409876,0.003,3310.6,3306.6,5.310233]
[1768342410170,0.003,3310.6,3307.0,1.56743048]
[1768342410469,0.003,3310.6,3307.4,4.108613]
[1768342410765,0.003,3310.6,3307.6,12.09336072]
[1768342410981,0.003,3310.6,3307.6,6.04668036]
[1768342411147,0.003,3310.6,3306.3,9.10884988]
[1768342411471,0.003,3310.6,3307.5,3.02343159]
[1768342411636,0.003,3310.6,3307.5,6.04686318]
[1768342411839,0.002,3310.3,3307.5,9.07029477]
[1768342412035,0.002,3310.3,3307.5,12.09372636]
[1768342412383,0.03011518,3311.2,3307.9,0.16]
[1768342412598,0.002,3312.0,3308.3,2.604592]
[1768342412764,0.002,3312.0,3308.5,3.800375]
[1768342412976,0.002,3312.0,3309.0,1.74793343]
[1768342413154,0.002,3312.0,3309.3,2.454941]
[1768342413335,0.002,3312.0,3308.6,7.97351652]
[1768342413336,0.002,3312.0,3309.2,1.55429855]
[1768342413541,0.002,3312.0,3308.9,0.16]
[1768342413542,0.002,3313.6,3309.6,2.718635]
[1768342413749,0.002,3313.6,3309.5,0.16]
[1768342413750,0.002,3313.6,3310.0,11.011479]
[1768342413950,0.002,3313.6,3309.5,1.58757422]
[1768342414162,0.002,3313.6,3310.2,1.56640796]
[1768342414455,0.002,3313.7,3310.9,9.26884988]
[1768342414655,0.002,3316.5,3311.8,28.58779288]
[1768342414963,0.30163355,3316.4,3312.0,1.54937083]
[1768342415164,0.002,3316.5,3312.4,24.03792254]
[1768342415364,0.002,3316.5,3312.4,14.5]
[1768342415565,3.336,3316.3,3311.8,6.039012]
[1768342415780,0.16,3316.0,3311.8,6.039012]
[1768342416086,3.336,3315.8,3311.8,20.539012]
[1768342416262,0.16,3315.6,3311.8,20.539012]
[1768342416454,0.16,3315.6,3311.8,23.558518]
[1768342416655,0.30163355,3315.5,3311.8,23.558518]
[1768342416854,0.31936522,3315.5,3311.8,23.558518]
[1768342417080,0.16,3315.4,3311.8,23.558518]
[1768342417290,0.16,3315.2,3311.8,14.5]
[1768342417458,0.16,3315.2,3311.8,3.019506]
[1768342417651,1.59825986,3315.8,3311.8,3.019506]
[1768342417859,0.16,3315.0,3311.8,6.039012]
[1768342418052,6.03063562,3316.4,3311.8,9.058518]
[1768342418287,6.03063562,3316.4,3311.9,1.50098549]
[1768342418288,3.01531781,3316.4,3311.9,1.50098549]
[1768342418584,10.64554168,3316.4,3311.8,6.039012]
[1768342418786,0.002,3316.5,3310.7,4.370726]
[1768342418787,0.16,3316.0,3310.7,4.370726]
[1768342419111,0.16,3315.8,3310.6,5.075773]
[1768342419384,0.64116287,3315.7,3311.5,9.9546371]
[1768342419588,3.01724165,3316.5,3312.2,1.51190947]
[1768342419772,0.002,3316.5,3312.5,3.506646]
[1768342419980,0.002,3316.5,3312.7,4.6499795]
[1768342420162,0.002,3316.5,3312.8,3.567297]
[1768342420364,0.002,3316.5,3312.9,14.5]
[1768342420567,9.04771127,3316.5,3312.9,14.5]
[1768342420884,0.16,3316.1,3311.4,2.966988]
[1768342421062,0.16,3316.1,3311.6,2.223011]
[1768342421266,0.16,3316.1,3313.5,9.9546371]
[1768342421267,0.28138224,3316.1,3313.5,9.9546371]
[1768342421636,0.002,3316.5,3313.8,9.816024]
[1768342421915,0.002,3316.5,3314.2,7.97351652]
[1768342422119,0.002,3316.5,3314.3,18.56029]
[1768342422296,0.002,3318.2,3315.0,7.97351652]
[1768342422788,0.002,3318.2,3315.1,12.066001]
[1768342422987,0.002,3318.2,3315.2,14.5]
[1768342423388,0.002,3318.2,3315.1,3.01650025]
[1768342423589,0.002,3318.2,3315.0,6.03310397]
[1768342423797,0.002,3318.2,3315.0,3.01651272]
[1768342424090,0.002,3318.2,3315.1,14.5]
[1768342424739,0.002,3318.2,3315.8,6.03172688]
[1768342425204,0.002,3318.2,3315.8,3.01586344]
[1768342425421,0.002,3316.0,3315.5,3.01613606]
[1768342425616,0.002,3318.2,3314.3,5.40093673]
[1768342425940,0.002,3317.4,3315.7,6.03190724]
[1768342426138,0.002,3317.4,3315.7,15.07977041]
[1768342426307,0.002,3318.2,3315.7,15.07977041]
[1768342426511,0.002,3318.2,3315.7,9.04786163]
[1768342426705,0.002,3318.2,3315.1,11.52133036]
[1768342426706,0.002,3318.2,3315.9,6.03154498]
[1768342427112,0.002,3318.2,3315.9,3.01577249]
[1768342427550,0.002,3318.2,3315.9,6.03154498]
[1768342427951,0.002,3318.2,3315.9,9.04731747]
[1768342428119,0.21425065,3318.4,3316.1,7.97351652]
[1768342428322,0.21425065,3318.4,3316.2,4.939283]
[1768342428539,0.16962292,3320.9,3316.3,11.49090229]
[1768342428738,3.01104435,3321.2,3316.9,7.97351652]
[1768342429067,9.96421516,3322.0,3317.0,2.417216]
[1768342429249,0.32522991,3322.5,3318.0,7.97351652]
[1768342429421,3.03359937,3321.1,3316.7,9.51544868]
[1768342429748,6.04469414,3321.1,3317.3,14.5]
[1768342429912,0.31729377,3321.5,3318.7,9.9546371]
[1768342430113,0.28522991,3322.0,3320.5,9.9546371]
[1768342430313,0.21214732,3323.1,3318.9,1.58633894]
[1768342430559,0.21214732,3323.1,3319.4,3.907558]
[1768342430722,3.22138568,3323.1,3319.3,6.02536678]
[1768342430911,0.58456949,3323.0,3319.3,9.03805017]
[1768342431115,0.42456949,3322.9,3318.5,1.50225638]
[1768342431308,0.16,3322.7,3319.0,3.0129375]
[1768342431534,0.16,3322.7,3319.0,3.0129351]
[1768342431736,0.16,3322.7,3318.2,3.01359233]
[1768342431737,0.16,3322.5,3317.7,17.51407968]
[1768342431939,0.16,3322.5,3318.8,3.01311494]
[1768342432134,0.16,3322.5,3317.8,8.0742356]
[1768342432135,12.2492687,3323.1,3319.2,6.02550575]
[1768342432355,0.16,3323.0,3319.2,6.02550575]
[1768342432524,0.58456949,3323.0,3318.0,12.96848345]
[1768342432724,0.16,3322.8,3318.3,6.919413]
[1768342432927,0.58456949,3322.8,3318.3,3.371296]
[1768342433249,0.16,3322.8,3318.3,2.294693]
[1768342433418,0.16,3322.8,3318.3,2.148831]
[1768342433619,0.16,3322.8,3318.2,12.05472844]
[1768342433818,0.16,3322.8,3318.3,2.509054]
[1768342434019,0.16,3322.8,3318.3,2.944555]
[1768342434822,6.01920124,3322.7,3318.5,8.45688038]
[1768342435061,3.00960062,3322.7,3318.7,1.56551544]
[1768342435224,6.01865782,3323.0,3318.9,5.90751894]
[1768342435424,0.16,3322.9,3319.0,4.45718]
[1768342435633,0.16,3322.9,3318.9,3.117629]
[1768342435928,6.23063243,3323.1,3319.3,3.213037]
[1768342436135,6.01542197,3324.8,3320.6,9.9546371]
[1768342436319,9.02318756,3324.8,3320.7,1.59388689]
[1768342436514,3.00769971,3324.8,3320.8,3.63181027]
[1768342436718,15.27333888,3325.6,3319.9,12.04855564]
[1768342436965,0.16,3325.2,3319.9,6.02427782]
[1768342437120,0.16,3324.1,3319.9,3.01213891]
[1768342437326,0.16,3324.3,3319.9,3.01213891]
[1768342437534,0.002,3322.5,3319.9,6.02427782]
[1768342438038,0.002,3322.5,3319.9,3.01213891]
[1768342438240,0.002,3322.5,3319.8,3.01221514]
[1768342438534,0.002,3322.5,3319.8,6.02444479]
[1768342438841,0.002,3322.5,3319.4,3.01259263]
[1768342439016,0.002,3322.5,3319.4,6.02518526]
[1768342439221,0.002,3322.5,3319.4,9.03777789]
[1768342439452,0.002,3322.5,3319.4,6.02518526]
[1768342439658,0.002,3322.5,3319.4,5.051268]
[1768342439949,0.002,3322.5,3319.5,17.73283]
[1768342440161,0.002,3322.5,3319.6,6.264434]
[1768342440363,0.002,3322.5,3319.6,1.58805618]
[1768342440563,0.002,3322.5,3319.7,2.226947]
[1768342440768,0.002,3322.5,3319.5,14.5]
[1768342440956,0.002,3322.5,3319.6,12.04964452]
[1768342441155,0.002,3322.5,3319.7,6.759666]
[1768342441403,0.002,3322.5,3319.8,9.9546371]
[1768342441533,0.002,3324.2,3321.5,9.9546371]
[1768342441739,0.002,3324.2,3321.7,9.9546371]
[1768342442146,3.00554328,3327.2,3322.4,1.52408804]
[1768342442364,0.15367916,3325.8,3323.1,11.50720368]
[1768342442547,3.00544153,3327.3,3323.2,5.987755]
[1768342442884,3.00534952,3327.4,3323.4,6.01793344]
[1768342443081,6.01069904,3327.4,3323.4,9.02690016]
[1768342443369,6.18667287,3327.5,3323.4,12.03586688]
[1768342443576,0.16,3327.4,3323.4,6.01793344]
[1768342443871,0.16,3327.4,3323.4,9.02690016]
[1768342444041,6.18667287,3327.5,3323.4,12.03586688]
[1768342444235,3.18138609,3327.5,3323.6,3.099435]
[1768342444448,0.17612689,3327.5,3323.8,3.256284]
[1768342444652,3.02776725,3327.5,3323.7,14.5]
[1768342444862,0.16,3327.2,3323.0,6.01865782]
[1768342445069,0.16,3327.2,3323.0,12.03731564]
[1768342445664,0.16,3327.2,3323.0,9.02798673]
[1768342446052,0.16,3327.2,3323.1,2.310187]
[1768342446254,0.15373988,3327.4,3323.2,0.88468545]
[1768342446459,9.16981932,3327.4,3323.0,15.04664455]
[1768342446677,6.01071448,3327.4,3323.1,3.620939]
[1768342446976,0.16,3327.1,3323.2,9.0274434]
[1768342447282,0.16,3327.1,3323.2,12.0365912]
[1768342447481,6.01106034,3327.2,3323.2,15.045739]
[1768342447685,0.16,3327.1,3323.3,6.898034]
[1768342447845,0.16,3327.1,3323.2,9.0274434]
[1768342448037,0.16,3327.1,3323.2,3.0091478]
[1768342448242,0.16,3326.7,3321.4,9.1167286]
[1768342448442,0.16,3326.8,3321.8,2.1135]
[1768342448671,0.16,3326.9,3323.1,6.01847672]
[1768342448887,9.17821678,3326.6,3322.2,3.01000417]
[1768342449052,3.336,3326.4,3321.9,9.03097623]
[1768342449378,0.16,3325.6,3321.9,3.01032541]
[1768342449577,0.16,3325.2,3320.4,3.01165229]
[1768342449777,0.16,3325.0,3320.5,3.01151492]
[1768342449950,0.16,3324.6,3321.1,3.01096623]
[1768342450152,0.16,3324.1,3320.5,3.01150423]
[1768342450339,0.16,3324.1,3320.1,3.01190804]
[1768342450545,0.16,3324.1,3320.7,3.01139673]
[1768342450778,0.16,3324.1,3319.9,3.01210074]
[1768342450940,0.16,3323.7,3319.2,5.423217]
[1768342451462,12.0344184,3323.8,3319.1,15.06427595]
[1768342451463,3.0086046,3323.8,3319.4,9.1167286]
[1768342451666,9.0258138,3323.8,3319.5,2.974802]
[1768342451980,0.16,3323.7,3319.5,2.61725]
[1768342452177,0.16,3323.7,3319.4,9.1167286]
[1768342452378,0.16,3323.3,3319.1,9.03854609]
[1768342452581,1.72557357,3323.3,3319.1,9.03854609]
[1768342452750,0.16,3323.3,3319.1,6.02568116]
[1768342452949,0.16,3323.1,3319.1,6.02568116]
[1768342453254,1.68744273,3323.1,3319.2,0.03012774]
[1768342453454,0.16,3323.1,3319.1,12.05141102]
[1768342453668,0.16,3323.1,3319.1,9.03854609]
[1768342453855,0.16,3323.1,3319.2,0.03012774]
[1768342454057,0.16,3323.7,3319.1,12.05141102]
[1768342454257,0.16,3323.3,3319.2,5.587857]
[1768342454458,0.16,3323.1,3319.1,6.02568116]
[1768342454646,0.16,3323.5,3319.1,6.02568116]
[1768342454847,6.51790387,3322.8,3318.5,0.001]
[1768342455046,1.50291345,3321.9,3318.5,0.001]
[1768342455244,0.16,3321.4,3318.5,0.001]
[1768342455656,1.70508849,3321.4,3318.5,0.001]
[1768342455861,1.66341295,3321.2,3318.5,0.001]
[1768342456179,0.16,3321.2,3318.5,0.001]
[1768342456685,0.16,3321.2,3316.0,6.64001869]
[1768342456686,0.16,3320.7,3315.7,3.0159259]
[1768342456986,0.16,3320.1,3315.9,11.379578]
[1768342457180,0.16,3320.1,3315.9,5.579539]
[1768342457480,0.16,3320.2,3315.9,6.495997]
[1768342457685,3.01050666,3321.7,3317.0,21.500414]
[1768342457885,3.01050666,3321.7,3317.7,9.70223347]
[1768342458184,9.02880186,3322.7,3318.3,9.70223347]
[1768342458351,0.16,3322.4,3318.3,9.70223347]
[1768342458679,1.68231307,3322.6,3318.3,9.70223347]
[1768342458880,9.02961714,3322.4,3317.0,12.05908952]
[1768342459115,0.16,3322.1,3317.2,5.248741]
[1768342459379,0.16,3322.2,3317.3,0.03014499]
[1768342459581,0.16,3322.2,3317.4,0.03014408]
[1768342459748,12.03912716,3322.5,3318.0,8.141925]
[1768342459951,9.02934537,3322.5,3317.9,0.16]
[1768342460268,15.04890895,3322.5,3317.4,9.70223347]
[1768342460474,1.69192787,3322.4,3317.5,6.73701]
[1768342460783,9.90244975,3322.4,3317.5,3.36551]
[1768342460968,0.16,3321.5,3317.2,9.04377183]
[1768342461170,27.77065941,3322.1,3317.2,6.02918122]
[1768342461171,6.66923697,3322.0,3317.2,6.02918122]
[1768342461345,0.16,3320.8,3317.2,6.02918122]
[1768342461544,1.72485698,3320.6,3317.2,3.01459061]
[1768342461749,1.71348708,3320.7,3317.5,0.001]
[1768342461944,0.16,3320.4,3317.5,0.001]
[1768342462558,0.31189401,3321.6,3317.5,0.001]
[1768342462758,0.31189401,3321.5,3317.5,0.001]
[1768342462962,0.6075411,3321.9,3317.5,0.001]
[1768342462963,0.16,3321.3,3317.5,0.001]
[1768342463993,0.34103936,3321.2,3317.5,0.001]
[1768342464158,0.16,3321.3,3317.5,0.001]
[1768342464359,0.16,3321.1,3317.5,0.001]
[1768342464863,0.59110304,3321.9,3317.5,0.001]
[1768342464864,0.16,3320.7,3317.5,0.001]
[1768342465091,0.34103936,3320.6,3317.5,0.001]
[1768342465277,6.0193824,3322.6,3317.5,0.001]
[1768342465461,0.16,3321.8,3317.5,0.001]
[1768342465662,0.16,3321.6,3317.5,0.001]
[1768342465960,6.44392283,3322.4,3317.5,0.001]
[1768342465961,0.16,3321.4,3317.5,0.001]
[1768342466458,0.34103936,3321.3,3317.5,0.001]
[1768342466659,0.16,3321.4,3317.5,0.001]
[1768342466890,15.05525275,3321.1,3317.5,0.001]
[1768342467194,0.16,3320.9,3317.5,0.001]
[1768342467406,3.176,3321.0,3317.5,0.001]
[1768342467579,9.03315165,3321.1,3317.5,0.001]
[1768342467580,3.176,3320.8,3317.5,0.001]
[1768342467769,3.336,3320.6,3317.5,0.001]
[1768342467971,0.16,3320.3,3317.5,0.001]
[1768342468301,0.16,3320.5,3317.5,0.001]
[1768342468501,3.51703936,3320.2,3317.5,0.001]
[1768342468808,3.176,3319.9,3317.5,0.001]
[1768342469021,3.176,3319.7,3317.5,0.001]
[1768342469373,6.0244593,3319.8,3317.5,0.001]
[1768342469906,3.00960062,3322.7,3317.6,6.64001869]
[1768342470107,0.31189401,3322.6,3317.7,9.70223347]
[1768342470279,1.53055734,3322.9,3318.1,9.70223347]
[1768342470601,3.176,3322.5,3318.3,9.70223347]
[1768342470805,0.16,3321.9,3318.3,9.70223347]
[1768342471107,0.16,3322.6,3318.4,3.01350048]
[1768342471108,0.16,3321.6,3318.4,3.01350048]
[1768342471307,0.16,3321.6,3318.4,6.02700096]
[1768342471620,0.16,3321.6,3318.3,3.01359129]
[1768342471768,3.336,3321.4,3318.3,6.02718258]
[1768342471968,3.64789401,3321.4,3318.3,6.02718258]
[1768342472279,3.176,3321.2,3317.5,0.001]
[1768342472479,0.16,3320.8,3317.5,0.001]
[1768342472694,3.64789401,3320.8,3317.5,0.001]
[1768342472890,15.22201576,3320.6,3317.5,0.001]
[1768342473094,6.02300788,3320.6,3317.5,0.001]
[1768342473308,3.01150394,3320.6,3317.5,0.001]
[1768342473524,3.01150394,3320.6,3317.8,0.001]
[1768342473874,0.16,3321.4,3317.8,0.001]
[1768342473875,6.02191978,3321.2,3317.8,0.001]
[1768342474297,0.16,3321.1,3317.8,0.001]
[1768342474509,0.16,3320.7,3317.8,0.001]
[1768342474709,3.176,3320.3,3317.8,0.001]
[1768342474909,9.03560025,3320.2,3317.8,0.001]
[1768342475409,3.48339388,3320.7,3317.8,0.001]
[1768342475410,0.31189401,3320.3,3317.8,0.001]
[1768342475609,3.01025898,3322.0,3317.8,0.001]
[1768342475610,0.16,3322.3,3317.8,9.80408547]
[1768342475808,0.49724415,3322.2,3317.8,0.001]
[1768342476109,0.16,3321.8,3317.8,0.001]
[1768342476309,9.07273378,3322.3,3317.8,0.03114045]
[1768342476615,0.16,3322.3,3317.9,3.438884]
[1768342477021,0.16,3322.1,3317.8,0.001]
[1768342477219,9.03016071,3322.2,3317.8,9.80408547]
[1768342477416,6.02010714,3322.2,3318.0,9.80308547]
[1768342477716,9.0290736,3322.6,3318.6,9.80308547]
[1768342477918,0.16,3322.5,3318.6,9.80308547]
[1768342478127,0.31189401,3322.5,3318.6,9.80308547]
[1768342478290,1.68228233,3322.3,3318.6,9.80308547]
[1768342478492,1.51715668,3322.0,3317.8,0.001]
[1768342478703,9.23273378,3321.6,3317.8,0.001]
[1768342478900,1.58887416,3321.8,3317.8,0.001]
[1768342478901,0.62513978,3321.5,3318.2,9.80308547]
[1768342479125,3.01077858,3321.4,3318.4,9.80308547]
[1768342479299,9.02934537,3322.5,3318.4,9.80308547]
[1768342479621,0.16,3322.4,3318.4,9.80308547]
[1768342479822,0.16,3322.2,3318.4,9.80308547]
[1768342480022,0.16,3322.0,3317.8,0.001]
[1768342480327,0.16,3321.6,3318.2,6.02734564]
[1768342480492,0.27928538,3321.5,3318.2,9.04102775]
[1768342480690,0.27928538,3321.4,3318.2,9.04102775]
[1768342480892,0.27928538,3321.3,3318.2,9.04102775]
[1768342481139,0.27928538,3321.2,3317.8,9.80408547]
[1768342481336,0.27928538,3321.1,3318.0,9.80308547]
[1768342481498,0.27928538,3321.0,3318.2,9.80308547]
[1768342481699,0.27928538,3320.9,3318.2,9.80308547]
[1768342481913,0.27928538,3320.8,3318.2,9.80308547]
[1768342482136,0.27928538,3320.7,3318.2,9.80308547]
[1768342482432,0.27928538,3320.6,3318.2,9.80308547]
[1768342482598,0.27928538,3320.5,3318.2,9.80308547]
[1768342482801,12.04021428,3322.2,3318.2,9.80308547]
[1768342482999,0.16,3321.9,3317.8,0.001]
[1768342483297,0.23514641,3322.4,3317.9,9.80308547]
[1768342483630,0.23514641,3322.4,3317.8,0.001]
[1768342483631,0.002,3322.7,3319.2,11.38440343]
[1768342483928,0.002,3322.7,3319.5,2.224168]
[1768342484101,0.002,3322.7,3319.4,9.80308547]
[1768342484299,3.0116147,3322.7,3319.4,9.80308547]
[1768342484821,6.0212294,3322.7,3319.1,6.64001869]
[1768342485135,6.0212294,3322.7,3319.2,9.03832248]
[1768342485136,0.002,3322.7,3319.2,9.03832248]
[1768342485595,0.30018634,3322.6,3319.2,9.03832248]
[1768342485797,0.002,3322.7,3319.2,6.02554832]
[1768342486041,0.16,3322.6,3319.2,3.01277416]
[1768342486257,0.16,3322.6,3319.1,6.02571238]
[1768342486551,0.002,3322.2,3319.1,6.02571238]
[1768342487245,0.002,3322.2,3318.5,0.001]
[1768342488316,12.24873378,3322.0,3318.5,0.001]
[1768342488652,0.16,3321.9,3318.5,0.03113409]
[1768342488842,0.16,3321.9,3318.5,0.001]
[1768342489038,3.176,3321.7,3318.5,0.001]
[1768342489963,0.16,3321.6,3318.5,0.001]
[1768342490494,3.176,3321.2,3318.5,0.001]
[1768342491128,3.176,3321.0,3318.5,0.001]
[1768342491333,6.02065082,3321.9,3318.5,0.001]
[1768342492463,3.176,3321.8,3318.5,0.001]
[1768342493038,0.003,3322.0,3318.5,0.001]
[1768342493236,0.003,3322.0,3318.5,9.80408547]
[1768342493558,4.92487416,3321.8,3318.5,0.001]
[1768342493759,0.003,3322.0,3318.5,0.001]
[1768342493760,12.40873378,3321.3,3318.5,0.001]
[1768342493938,12.40873378,3320.8,3318.5,0.001]
[1768342494137,12.40873378,3320.8,3317.8,0.001]
[1768342494138,3.176,3320.6,3317.8,0.001]
[1768342494334,0.16,3320.1,3317.8,0.001]
[1768342494670,0.16,3320.1,3316.2,9.80308547]
[1768342494874,0.16,3319.9,3316.3,3.01535821]
[1768342495056,0.16,3319.9,3314.7,3.01678919]
[1768342495057,3.336,3319.5,3315.1,9.80308547]
[1768342495256,0.16,3319.3,3315.3,9.80308547]
[1768342495577,0.28004331,3319.2,3315.3,9.80308547]
[1768342495759,0.28004331,3319.1,3315.3,9.80308547]
[1768342496069,0.28004331,3319.0,3315.3,9.80308547]
[1768342496272,3.176,3318.8,3315.2,9.04922778]
[1768342496463,0.28004331,3318.7,3315.2,9.04922778]
[1768342496641,0.28004331,3318.6,3315.2,12.06563704]
[1768342496842,0.28004331,3318.5,3315.2,9.04922778]
[1768342497074,9.04077387,3318.3,3315.2,9.04922778]
[1768342497372,0.27955888,3318.2,3315.2,6.03281852]
[1768342497576,0.27955888,3318.1,3315.2,9.04922778]
[1768342497744,0.27955888,3318.0,3315.2,9.04922778]
[1768342498061,0.27767229,3317.9,3315.2,9.04826111]
[1768342498264,6.02718258,3318.3,3315.2,9.04826111]
[1768342498440,6.02718258,3318.3,3315.2,12.06467037]
[1768342498640,6.18482226,3319.6,3315.4,9.80308547]
[1768342498873,9.19723339,3319.6,3315.5,6.773517]
[1768342499173,9.19723339,3319.6,3315.6,12.06418144]
[1768342499477,0.15,3318.8,3315.6,12.06418144]
[1768342499670,9.19723339,3319.6,3315.8,5.698989]
[1768342499671,0.15,3319.0,3315.8,5.698989]
[1768342499876,0.15,3318.9,3315.6,12.06418144]
[1768342500081,0.15,3318.8,3315.6,12.06418144]
[1768342500250,3.01241113,3319.6,3315.6,6.03209072]
[1768342500455,0.15,3320.1,3316.6,9.80308547]
[1768342500654,0.15,3320.1,3315.6,6.03209072]
[1768342500655,0.15,3319.9,3315.8,0.16]
[1768342500884,0.15,3319.8,3316.2,14.5]
[1768342501046,0.15,3319.8,3316.4,0.16]
[1768342501245,6.02264514,3320.8,3316.7,27.03141]
[1768342501246,0.15,3320.1,3316.7,27.03141]
[1768342501518,0.15,3320.4,3317.0,11.36925218]
[1768342501648,3.01050666,3321.7,3317.7,9.80308547]
[1768342501991,0.003,3322.0,3319.2,9.80308547]
[1768342502141,0.60463923,3324.3,3321.0,9.80308547]
[1768342502347,3.61279132,3324.3,3321.4,9.80308547]
[1768342502580,0.002,3324.4,3321.4,9.80308547]
[1768342502783,0.002,3324.4,3321.6,9.80308547]
[1768342502982,0.002,3324.4,3321.6,14.5]
[1768342502983,3.01007946,3324.4,3321.6,14.5]
[1768342503193,0.002,3324.4,3321.6,14.5]
[1768342503895,3.01012095,3324.4,3321.6,14.5]
[1768342504182,0.002,3324.4,3321.7,6.02101332]
[1768342504383,0.002,3324.4,3319.9,3.01207189]
[1768342504686,0.002,3324.4,3321.7,9.03151998]
[1768342504859,0.002,3324.4,3321.7,3.01050666]
[1768342505856,0.002,3324.4,3320.6,14.5]
[1768342506067,0.16,3324.1,3320.6,14.5]
[1768342506253,0.16,3323.9,3319.1,11.00527148]
[1768342506452,6.01684716,3324.0,3319.5,3.01244155]
[1768342506752,9.54873284,3323.9,3320.6,3.01150394]
[1768342506976,0.16,3323.6,3318.7,3.01315966]
[1768342507194,9.54873284,3323.2,3318.7,3.01321451]
[1768342507370,9.54873284,3323.2,3318.5,7.99246117]
[1768342507371,9.54873284,3323.2,3318.8,14.5]
[1768342507676,0.16,3322.5,3318.8,3.01308576]
[1768342507881,0.16,3322.5,3317.8,9.25082157]
[1768342507882,0.4876685,3322.7,3319.4,3.01256696]
[1768342508084,0.4876685,3322.7,3318.8,3.01313454]
[1768342508085,9.38873284,3322.5,3318.8,3.01313454]
[1768342508282,0.16,3322.3,3317.5,9.25082157]
[1768342508586,0.16,3322.3,3317.9,9.25082157]
[1768342508887,0.16,3322.1,3318.0,9.25082157]
[1768342509185,0.38000183,3322.0,3318.1,9.25082157]
[1768342509354,0.38000183,3322.0,3318.2,2.745181]
[1768342509556,0.16,3322.1,3318.3,14.5]
[1768342509762,0.16,3321.9,3318.3,14.5]
[1768342509987,0.27774753,3321.8,3318.1,9.25082157]
[1768342510186,9.0317919,3321.6,3318.2,6.02736422]
[1768342510355,0.27774753,3321.5,3318.2,23.54104633]
[1768342510560,0.27774753,3321.5,3318.2,20.52736422]
[1768342510789,0.27774753,3321.5,3318.1,9.25082157]
[1768342510790,0.16,3321.4,3318.1,9.25082157]
[1768342510952,0.16,3321.0,3317.4,3.01432944]
[1768342511160,0.16,3320.8,3316.8,9.25082157]
[1768342511363,0.16,3320.6,3316.9,14.501]
[1768342511690,9.54873284,3320.4,3316.9,0.001]
[1768342511853,0.16,3319.5,3316.9,0.001]
[1768342512057,0.43782363,3319.4,3316.9,0.001]
[1768342512397,9.03832248,3319.2,3315.7,9.04786317]
[1768342512555,0.27782363,3319.1,3315.7,6.03190878]
[1768342512876,0.16,3318.9,3315.5,0.001]
[1768342513076,0.16,3318.7,3315.5,0.001]
[1768342513285,0.16,3318.5,3315.5,0.001]
[1768342513600,1.75680444,3318.3,3315.5,0.001]
[1768342513761,0.16,3318.1,3315.5,0.001]
[1768342514080,0.37947553,3318.4,3315.5,0.001]
[1768342514081,0.16,3317.9,3315.5,0.001]
[1768342514257,0.16,3317.5,3315.5,0.001]
[1768342514458,3.01359129,3318.3,3315.5,0.001]
[1768342514676,0.37947553,3319.7,3315.5,0.001]
[1768342514896,3.01170647,3320.4,3315.6,2.530612]
[1768342514897,0.43722658,3319.6,3315.6,2.530612]
[1768342515063,0.16,3319.4,3315.7,14.5]
[1768342515259,0.16,3319.2,3315.7,14.5]
[1768342515472,0.27711838,3319.1,3315.7,14.5]
[1768342515679,0.37947553,3319.1,3315.7,14.5]
[1768342515896,0.16,3318.9,3315.5,0.001]
[1768342516065,0.27712537,3318.8,3315.5,0.001]
[1768342516399,9.03913947,3318.9,3315.5,0.001]